bitfinex/quotes_SOLUSD_20250201
["timestamp","ask_amount","ask_price","bid_price","bid_amount"]
[1738447139607,20.0,217.06,216.99,0.75416766]
[1738447140198,0.68980308,217.08,216.99,0.75416766]
[1738447140388,20.68980308,217.09,216.99,0.75416766]
[1738447141209,21.845213,217.08,216.99,0.75416766]
[1738447141400,0.68980308,217.07,216.99,0.75416766]
[1738447141988,0.68980308,217.07,216.99,0.063]
[1738447143083,20.0,217.03,216.99,0.063]
[1738447143296,0.68980308,217.02,216.94,0.063]
[1738447144288,13.41184853,217.02,216.94,0.063]
[1738447144486,0.68980308,217.01,216.94,0.063]
[1738447145620,20.0,216.97,216.89,0.75435965]
[1738447145823,0.68980308,216.96,216.9,0.19275388]
[1738447146292,0.68980308,216.98,216.9,0.19275388]
[1738447146694,0.68980308,216.98,216.9,0.88422481]
[1738447147215,0.68980308,216.98,216.9,0.19275388]
[1738447148606,1.86456171,216.98,216.9,0.19275388]
[1738447149517,1.86456171,216.98,216.9,0.063]
[1738447149740,13.41184853,216.97,216.89,0.063]
[1738447150030,20.0,216.92,216.89,0.063]
[1738447150246,0.68980308,216.91,216.88,1.25049592]
[1738447150519,0.68980308,216.91,216.77,0.75470465]
[1738447150520,20.0,216.9,216.77,0.75470465]
[1738447150720,20.0,216.88,216.78,0.11355082]
[1738447150899,0.68980308,216.87,216.78,0.59042751]
[1738447152999,20.0,216.88,216.79,0.69181147]
[1738447153307,0.68980308,216.92,216.79,0.69181147]
[1738447153499,20.0,216.94,216.79,0.69181147]
[1738447153810,0.68980308,216.93,216.79,0.69181147]
[1738447155133,20.0,216.9,216.79,0.69181147]
[1738447157525,0.68980308,216.89,216.79,0.69181147]
[1738447158228,20.0,216.9,216.79,0.69181147]
[1738447160027,6.3108,216.97,216.8,13.41184853]
[1738447160247,20.0,216.94,216.81,0.69154667]
[1738447160416,0.68980308,216.93,216.81,0.69154667]
[1738447161421,20.0,216.9,216.81,0.69154667]
[1738447161637,0.71980308,216.89,216.82,0.69171625]
[1738447161844,0.71980308,216.89,216.79,0.75470994]
[1738447162764,0.71980308,216.89,216.8,0.69174491]
[1738447163125,20.0,216.85,216.79,0.063]
[1738447163450,0.68980308,216.84,216.79,0.063]
[1738447163668,20.68980308,216.84,216.77,0.063]
[1738447163897,20.0,216.8,216.76,0.063]
[1738447164114,0.68980308,216.79,216.68,0.75499976]
[1738447164393,20.0,216.75,216.68,0.75499976]
[1738447164708,0.68980308,216.74,216.68,0.063]
[1738447165583,13.41184853,216.74,216.68,0.063]
[1738447165787,20.0,216.71,216.59,0.69226172]
[1738447165969,0.68980308,216.7,216.56,0.69243382]
[1738447166845,20.68980308,216.7,216.56,0.69243382]
[1738447167057,6.0736,216.74,216.61,13.41184853]
[1738447167258,0.68980308,216.73,216.62,0.69216158]
[1738447167553,20.68980308,216.75,216.62,0.69216158]
[1738447168163,6.5656,216.73,216.62,0.69216158]
[1738447168365,8.2209,216.68,216.41,22.51895099]
[1738447168583,13.41184853,216.48,216.42,0.34974383]
[1738447168866,20.0,216.45,216.31,0.35075931]
[1738447169103,0.8664812,216.44,216.37,0.35099773]
[1738447170078,0.8664812,216.44,216.3,0.35086536]
[1738447170391,20.0,216.4,216.3,0.35086536]
[1738447170874,0.86656558,216.39,216.3,0.35086536]
[1738447171665,0.86656558,216.39,216.2,22.99587579]
[1738447172001,0.86656558,216.39,216.21,13.41184853]
[1738447172191,0.86656558,216.39,216.22,0.35147429]
[1738447172576,0.86656558,216.39,216.24,0.12549]
[1738447172795,0.86652598,216.44,216.26,13.41184853]
[1738447173004,20.0,216.43,216.28,13.41184853]
[1738447173322,0.86656234,216.42,216.29,0.35116001]
[1738447176623,0.86656234,216.42,216.24,0.35133174]
[1738447177190,0.86656234,216.42,216.25,13.41184853]
[1738447177409,0.86656234,216.42,216.27,13.41184853]
[1738447177722,20.0,216.38,216.28,0.35132951]
[1738447177894,20.0,216.38,216.23,13.41184853]
[1738447178219,20.0,216.38,216.24,0.35140267]
[1738447179920,0.86667141,216.4,216.25,13.41184853]
[1738447180114,20.0,216.39,216.27,13.41184853]
[1738447180319,0.86659848,216.4,216.28,0.35123229]
[1738447181104,13.41184853,216.39,216.28,0.35123229]
[1738447181297,20.0,216.36,216.23,0.3514882]
[1738447181706,20.0,216.36,216.24,13.41184853]
[1738447181904,20.0,216.36,216.25,0.35154329]
[1738447182229,0.86675384,216.35,216.22,0.35154302]
[1738447182451,33.41184853,216.34,216.17,0.41488082]
[1738447182591,0.86701664,216.33,216.17,0.41488082]
[1738447182791,0.86701664,216.33,216.18,13.41184853]
[1738447183019,0.86701664,216.33,216.19,0.35204878]
[1738447183224,20.0,216.29,216.19,0.35204878]
[1738447183405,33.41184853,216.34,216.19,0.35204878]
[1738447183406,0.86705258,216.28,216.19,0.35204878]
[1738447183606,20.0,216.29,216.19,0.35204878]
[1738447183819,0.86704797,216.28,216.19,0.35204878]
[1738447183992,20.0,216.29,216.2,0.35212275]
[1738447184200,20.0,216.29,216.18,0.35204135]
[1738447185814,20.0,216.34,216.18,0.35204135]
[1738447186021,0.86699234,216.36,216.18,0.35204135]
[1738447186022,0.86685841,216.36,216.22,22.51895099]
[1738447186227,0.86685841,216.36,216.23,13.76333941]
[1738447186396,1.16418541,216.38,216.23,13.76333941]
[1738447186597,20.86676625,216.37,216.23,13.76333941]
[1738447186797,0.86676625,216.37,216.23,13.76333941]
[1738447187005,20.0,216.35,216.23,13.76333941]
[1738447187239,0.86675382,216.37,216.23,13.76333941]
[1738447187400,0.86675382,216.43,216.25,13.41184853]
[1738447187734,20.0,216.39,216.26,0.35140181]
[1738447187929,0.86669088,216.38,216.26,0.35140181]
[1738447188819,0.86669088,216.38,216.24,0.35142321]
[1738447189029,0.86669088,216.38,216.25,0.35154931]
[1738447189527,13.41184853,216.34,216.2,0.3515883]
[1738447189726,20.86703908,216.33,216.18,0.35209302]
[1738447190411,20.0,216.29,216.18,0.35209302]
[1738447190617,0.86715045,216.28,216.18,0.35209302]
[1738447193214,0.86707984,216.31,216.18,0.35209302]
[1738447193633,0.86693239,216.37,216.18,0.35209302]
[1738447193837,0.86693239,216.37,216.19,13.41184853]
[1738447194141,0.86693239,216.37,216.2,0.35181365]
[1738447194331,20.0,216.33,216.2,0.35181365]
[1738447194536,0.86689758,216.32,216.2,0.35181365]
[1738447196652,0.86690464,216.35,216.21,13.41184853]
[1738447196807,1.1790138,216.38,216.22,0.3516306]
[1738447196808,0.86679763,216.37,216.22,0.3516306]
[1738447197017,0.86679763,216.37,216.23,13.41184853]
[1738447197342,0.86679763,216.37,216.24,0.35153679]
[1738447198546,20.0,216.33,216.24,0.35153679]
[1738447198713,0.86692047,216.32,216.2,0.41487627]
[1738447199836,0.86692047,216.32,216.21,13.41184853]
[1738447200040,1.851522,216.33,216.23,13.41184853]
[1738447200244,1.851522,216.33,216.24,0.35147261]
[1738447200914,2.04579028,216.38,216.25,13.41184853]
[1738447201115,0.86668303,216.37,216.26,0.3514014]
[1738447201648,13.41184853,216.39,216.26,0.3514014]
[1738447201849,20.0,216.34,216.2,0.41464388]
[1738447202027,0.86689085,216.33,216.2,0.41464388]
[1738447202666,20.0,216.29,216.2,0.41464388]
[1738447202809,0.86707341,216.28,216.2,0.063]
[1738447203150,13.41184853,216.27,216.2,0.063]
[1738447203358,20.0,216.24,216.2,0.063]
[1738447203514,0.86729983,216.23,216.2,0.063]
[1738447204117,20.0,216.24,216.2,0.063]
[1738447204517,0.86723768,216.23,216.2,0.063]
[1738447205542,20.0,216.24,216.2,0.063]
[1738447205842,0.86723012,216.23,216.2,0.063]
[1738447206354,20.86727752,216.24,216.2,0.063]
[1738447206599,20.0,216.2,216.17,0.063]
[1738447206717,20.0,216.2,216.04,6.25939636]
[1738447206913,20.0,216.2,216.05,13.41184853]
[1738447207341,3.00624702,216.27,216.05,35.93079952]
[1738447207531,0.86726297,216.26,216.08,13.41184853]
[1738447207729,3.87353014,216.27,216.12,13.41184853]
[1738447207945,3.87353014,216.27,216.15,13.41184853]
[1738447207946,1.852313,216.27,216.15,13.41184853]
[1738447208356,1.852313,216.27,216.14,13.41184853]
[1738447208725,1.852313,216.27,216.13,13.41184853]
[1738447209055,2.71936853,216.27,216.11,22.51895099]
[1738447209448,20.0,216.3,216.15,13.41184853]
[1738447209749,20.0,216.3,216.17,13.41184853]
[1738447209923,20.0,216.28,216.16,7.8935]
[1738447210127,0.8671152,216.27,216.16,7.8935]
[1738447212881,0.8671152,216.27,216.16,6.3404]
[1738447213377,20.0,216.23,216.11,6.3404]
[1738447213578,0.86734919,216.22,216.11,6.3404]
[1738447215189,20.0,216.23,216.11,6.3404]
[1738447215480,0.86731312,216.25,216.12,13.41184853]
[1738447215690,0.86715057,216.24,216.12,13.41184853]
[1738447215855,20.86723645,216.26,216.12,13.41184853]
[1738447216689,20.0,216.26,216.13,22.51895099]
[1738447216848,0.86718504,216.28,216.16,13.41184853]
[1738447217048,1.15052401,216.3,216.18,35.93079952]
[1738447217290,1.851762,216.28,216.18,13.41184853]
[1738447217464,0.86693945,216.31,216.18,13.41184853]
[1738447217648,20.0,216.3,216.18,13.41184853]
[1738447217846,0.86694536,216.32,216.17,35.93079952]
[1738447218072,6.6035,216.46,216.22,35.93079952]
[1738447218073,2.79574445,216.45,216.22,35.93079952]
[1738447218245,2.79574445,216.45,216.2,22.30534853]
[1738447218246,0.86659265,216.38,216.26,13.41184853]
[1738447218466,20.0,216.38,216.26,13.41184853]
[1738447218665,0.86664017,216.4,216.26,13.41184853]
[1738447218872,0.86664017,216.4,216.23,22.51895099]
[1738447219186,0.86664017,216.4,216.26,13.41184853]
[1738447219680,20.0,216.38,216.26,13.41184853]
[1738447220081,0.86664017,216.4,216.26,13.41184853]
[1738447220266,7.84893243,216.43,216.27,13.41184853]
[1738447220466,0.86657233,216.43,216.27,13.41184853]
[1738447220665,1.17928034,216.44,216.3,1.5531]
[1738447221002,1.149431,216.5,216.35,22.51895099]
[1738447221166,20.0,216.46,216.32,35.93079952]
[1738447221367,20.0,216.46,216.32,13.41184853]
[1738447221664,20.0,216.46,216.3,1.5531]
[1738447221665,0.86628674,216.45,216.3,1.5531]
[1738447222260,0.03,216.32,216.3,1.5531]
[1738447222461,0.03,216.32,216.31,13.41184853]
[1738447222661,0.03,216.32,216.31,35.93079952]
[1738447222878,0.86625985,216.51,216.31,35.93079952]
[1738447223090,1.850138,216.5,216.35,22.51895099]
[1738447223975,0.86615053,216.55,216.41,22.51895099]
[1738447224181,6.9823601,216.56,216.44,22.51895099]
[1738447224359,6.9823601,216.56,216.43,1.6268]
[1738447225077,20.0,216.53,216.43,1.6268]
[1738447225277,7.84821359,216.56,216.43,1.6268]
[1738447225484,20.0,216.52,216.43,1.6268]
[1738447226762,2.33956048,216.57,216.43,1.6268]
[1738447226961,0.86584369,216.57,216.43,1.6268]
[1738447227179,20.0,216.53,216.43,1.6268]
[1738447227689,0.86603158,216.52,216.39,6.3404]
[1738447228275,20.0,216.53,216.39,6.3404]
[1738447229172,1.13762058,216.57,216.4,35.93079952]
[1738447229369,0.86597089,216.61,216.45,35.93079952]
[1738447229590,1.15744984,216.62,216.46,22.51895099]
[1738447229770,20.0,216.58,216.44,13.41184853]
[1738447230093,2.02493399,216.61,216.46,35.93079952]
[1738447230399,2.02493399,216.61,216.44,13.41184853]
[1738447230400,0.03,216.62,216.49,22.51895099]
[1738447230575,0.03,216.62,216.5,13.41184853]
[1738447230763,0.03,216.62,216.47,25.93895099]
[1738447230990,0.03,216.62,216.47,3.42]
[1738447231195,0.03,216.62,216.48,13.41184853]
[1738447231497,0.03,216.62,216.49,30.16215099]
[1738447232175,0.03,216.62,216.5,36.05628952]
[1738447232377,0.03,216.62,216.51,22.51895099]
[1738447232989,0.03,216.62,216.5,22.51895099]
[1738447233574,0.03,216.62,216.53,22.51895099]
[1738447233891,0.03,216.62,216.54,13.41184853]
[1738447234669,0.03,216.62,216.55,13.41184853]
[1738447235700,0.03,216.62,216.54,22.51895099]
[1738447235885,0.03,216.62,216.53,22.51895099]
[1738447236081,0.03,216.62,216.54,35.93079952]
[1738447237796,0.03,216.62,216.56,13.41184853]
[1738447237970,0.03,216.62,216.56,35.93079952]
[1738447238466,0.03,216.62,216.56,13.41184853]
[1738447239171,0.03,216.62,216.55,13.41184853]
[1738447239694,0.03,216.62,216.55,35.93079952]
[1738447239883,0.03,216.62,216.57,35.93079952]
[1738447240287,0.03,216.62,216.6,22.51895099]
[1738447240606,0.03,216.62,216.55,22.51895099]
[1738447240771,0.03,216.62,216.53,22.51895099]
[1738447240972,0.03,216.62,216.56,13.41184853]
[1738447241200,0.03,216.62,216.58,35.93079952]
[1738447241395,0.03,216.62,216.58,40.54789952]
[1738447241702,0.03,216.62,216.58,22.51895099]
[1738447242498,0.03,216.62,216.59,13.41184853]
[1738447243609,0.03,216.62,216.57,4.6174]
[1738447243610,0.03,216.62,216.56,3.38]
[1738447243774,0.03,216.62,216.51,30.51745099]
[1738447243979,0.03,216.62,216.52,35.93079952]
[1738447244177,0.03,216.62,216.53,22.51895099]
[1738447244694,0.03,216.62,216.54,22.51895099]
[1738447244998,0.03,216.62,216.55,40.54859952]
[1738447245169,0.03,216.62,216.58,13.41184853]
[1738447245372,0.03,216.62,216.57,13.41184853]
[1738447245591,0.03,216.62,216.54,4.618]
[1738447245800,0.03,216.62,216.59,13.41184853]
[1738447246382,0.03,216.62,216.57,22.51895099]
[1738447246585,0.03,216.62,216.56,23.51895099]
[1738447246891,0.03,216.62,216.6,35.93079952]
[1738447247271,0.03,216.62,216.61,36.05628952]
[1738447247473,0.03,216.62,216.61,42.67918952]
[1738447248477,0.03,216.62,216.61,47.29568952]
[1738447251713,0.03,216.62,216.61,47.17019952]
[1738447251891,0.03,216.62,216.61,13.41184853]
[1738447252789,0.03,216.62,216.61,35.93079952]
[1738447253113,0.03,216.62,216.61,13.41184853]
[1738447254621,0.03,216.62,216.61,35.93079952]
[1738447256723,0.03,216.62,216.61,36.05628952]
[1738447256897,0.03,216.62,216.61,40.67278952]
[1738447257811,0.03,216.62,216.61,18.15383853]
[1738447258027,0.03,216.62,216.61,40.67278952]
[1738447262327,0.03,216.62,216.61,42.92376952]
[1738447262534,0.03,216.62,216.61,13.41184853]
[1738447262750,0.03,216.62,216.55,135.6]
[1738447262948,0.03,216.62,216.51,135.6]
[1738447263241,0.03,216.62,216.48,166.09825099]
[1738447263433,0.03,216.62,216.48,3.36]
[1738447263638,0.03,216.62,216.48,25.87895099]
[1738447263850,0.03,216.62,216.48,17.44903111]
[1738447264518,0.03,216.62,216.49,13.41184853]
[1738447264914,0.03,216.62,216.49,27.50087964]
[1738447265125,0.03,216.62,216.44,1.0]
[1738447265126,1.5881,216.61,216.44,14.08903111]
[1738447265351,20.0,216.57,216.42,17.44903111]
[1738447265635,20.0,216.57,216.46,13.41184853]
[1738447266225,20.0,216.57,216.47,13.41184853]
[1738447266433,20.0,216.57,216.49,13.41184853]
[1738447267112,20.0,216.57,216.44,22.54923195]
[1738447267313,20.0,216.57,216.43,25.90923195]
[1738447267643,20.0,216.57,216.44,35.96108048]
[1738447267942,20.0,216.57,216.46,13.41184853]
[1738447269173,20.0,216.57,216.47,35.96108048]
[1738447269324,20.0,216.57,216.51,13.41184853]
[1738447270114,20.0,216.57,216.49,22.54923195]
[1738447270559,20.0,216.57,216.44,11.67569]
[1738447270560,20.0,216.57,216.5,13.41184853]
[1738447272526,20.0,216.57,216.48,35.96108048]
[1738447272829,20.0,216.57,216.5,13.41184853]
[1738447273249,20.0,216.57,216.46,35.96108048]
[1738447273452,20.0,216.57,216.48,13.41184853]
[1738447273632,20.0,216.57,216.48,35.96108048]
[1738447275753,20.0,216.57,216.52,13.41184853]
[1738447277558,6.2293,216.6,216.52,13.41184853]
[1738447277851,1.5881,216.61,216.54,35.96108048]
[1738447278061,0.03,216.62,216.58,13.41184853]
[1738447278859,0.03,216.62,216.59,13.41184853]
[1738447279033,0.03,216.62,216.59,35.96108048]
[1738447279362,0.03,216.62,216.61,35.96108048]
[1738447280234,0.03,216.62,216.61,13.41184853]
[1738447280858,0.03,216.62,216.6,13.41184853]
[1738447281151,0.03,216.62,216.61,13.41184853]
[1738447281733,0.03,216.62,216.61,35.96108048]
[1738447283035,0.03,216.62,216.61,13.41184853]
[1738447284262,0.03,216.62,216.61,36.08657048]
[1738447284439,0.03,216.62,216.61,40.70307048]
[1738447285441,0.03,216.62,216.61,36.08657048]
[1738447285861,0.03,216.62,216.61,27.60894699]
[1738447286560,0.03,216.62,216.61,13.41184853]
[1738447288060,0.03,216.62,216.61,27.48345699]
[1738447288574,0.03,216.62,216.61,27.60894699]
[1738447288868,0.03,216.62,216.61,27.48345699]
[1738447289364,0.03,216.62,216.61,13.41184853]
[1738447290440,0.03,216.62,216.54,135.6]
[1738447290631,0.03,216.62,216.55,3.32]
[1738447290856,0.03,216.62,216.56,13.41184853]
[1738447291050,0.03,216.62,216.53,14.07160846]
[1738447291255,20.03,216.62,216.53,3.32]
[1738447291451,20.03,216.62,216.53,17.39160846]
[1738447291762,20.03,216.62,216.54,13.41184853]
[1738447292157,20.03,216.62,216.56,13.41184853]
[1738447292357,0.03,216.62,216.58,13.41184853]
[1738447293137,0.03,216.62,216.59,13.41184853]
[1738447293863,0.03,216.62,216.6,13.41184853]
[1738447296572,0.03,216.62,216.61,27.48345699]
[1738447297080,0.03,216.62,216.61,27.85992699]
[1738447297450,0.03,216.62,216.61,171.54341699]
[1738447297657,0.03,216.62,216.61,35.94341699]
[1738447297833,0.03,216.68,216.64,0.50196]
[1738447298037,0.03,216.68,216.67,27.60894699]
[1738447298958,0.03,216.68,216.67,32.22424699]
[1738447299157,0.03,216.68,216.67,183.27232545]
[1738447299358,1.6585,216.83,216.68,14.91380853]
[1738447299562,1.6585,216.83,216.78,14.07160846]
[1738447299760,0.03,216.83,216.8,13.41184853]
[1738447299966,0.03,216.83,216.82,27.48345699]
[1738447300274,0.03,216.83,216.82,27.60894699]
[1738447300462,0.03,216.83,216.82,27.48345699]
[1738447301047,0.03,216.83,216.82,27.60894699]
[1738447301277,0.03,216.83,216.82,27.85992699]
[1738447301646,0.03,216.83,216.82,37.37031872]
[1738447301877,0.03,216.83,216.82,38.37031872]
[1738447302076,0.03,216.89,216.87,20.12549]
[1738447302279,0.03,216.89,216.88,22.45651019]
[1738447302444,0.03,216.89,216.88,35.86835872]
[1738447302649,0.03,216.89,216.88,13.41184853]
[1738447305057,0.03,216.89,216.88,35.86835872]
[1738447305570,0.03,216.89,216.88,35.99384872]
[1738447306479,0.03,216.89,216.88,37.37031872]
[1738447306994,0.03,216.89,216.88,43.94921872]
[1738447307288,6.2429,217.04,216.93,13.53733853]
[1738447307580,6.2429,217.04,216.98,13.41184853]
[1738447308163,0.03,217.05,216.99,35.86835872]
[1738447308483,0.03,217.05,217.04,13.41184853]
[1738447308685,0.03,217.05,217.04,35.86835872]
[1738447309252,0.03,217.05,217.0,22.45651019]
[1738447309577,0.03,217.05,217.01,13.41184853]
[1738447309880,0.03,217.05,217.0,22.45651019]
[1738447309881,0.03,217.05,217.04,35.86835872]
[1738447310059,0.03,217.05,217.04,13.41184853]
[1738447310466,0.03,217.05,217.04,35.86835872]
[1738447311654,0.03,217.05,217.04,35.99384872]
[1738447315184,0.03,217.05,217.04,35.86835872]
[1738447315492,0.03,217.05,217.04,13.41184853]
[1738447321592,0.03,217.05,217.04,35.86835872]
[1738447321764,0.03,217.05,217.04,27.42930396]
[1738447322881,0.03,217.05,217.04,13.41184853]
[1738447323485,0.03,217.05,216.98,14.01745543]
[1738447324095,0.03,217.05,217.0,27.42930396]
[1738447324869,0.03,217.05,217.0,13.41184853]
[1738447325088,0.03,217.05,216.99,14.01745543]
[1738447325089,0.03,217.05,216.96,14.01745543]
[1738447325290,0.03,217.05,216.97,14.01745543]
[1738447325477,0.03,217.05,216.99,13.41184853]
[1738447326192,0.03,217.05,217.01,13.41184853]
[1738447326391,0.03,217.05,217.01,27.42930396]
[1738447327293,0.03,217.05,217.03,13.41184853]
[1738447328992,0.03,217.05,216.99,4.6084]
[1738447329208,0.03,217.05,216.97,14.14294543]
[1738447329573,0.03,217.05,217.01,13.41184853]
[1738447330199,0.03,217.05,217.02,13.41184853]
[1738447330398,0.03,217.05,217.02,27.42930396]
[1738447330695,0.03,217.05,217.01,13.41184853]
[1738447330996,0.03,217.05,216.96,14.01745543]
[1738447331296,0.03,217.05,216.96,3.3]
[1738447331891,0.03,217.05,216.92,14.01745543]
[1738447332098,6.1916,217.03,216.9,3.3]
[1738447332279,6.1916,217.03,216.89,14.08045543]
[1738447332280,20.0,217.0,216.89,0.063]
[1738447333897,20.0,217.0,216.89,14.08045543]
[1738447335001,20.0,217.0,216.89,0.063]
[1738447336401,20.0,217.0,216.89,14.08045543]
[1738447339517,20.0,217.0,216.89,0.063]
[1738447339710,2.52556619,216.99,216.89,0.063]
[1738447340090,1.6615,216.99,216.89,0.063]
[1738447341685,2.52568663,216.99,216.89,0.063]
[1738447341880,1.6615,216.99,216.89,0.063]
[1738447342405,1.6615,216.99,216.9,13.41184853]
[1738447343483,1.6615,216.99,216.89,0.063]
[1738447343880,2.52562503,216.99,216.89,0.063]
[1738447346516,1.6615,216.99,216.89,0.063]
[1738447347183,1.6615,216.99,216.9,13.41184853]
[1738447347385,1.6615,216.99,216.9,27.42930396]
[1738447347585,1.6615,216.99,216.9,13.41184853]
[1738447348118,1.6615,216.99,216.89,13.47484853]
[1738447350582,0.03,217.0,216.97,14.01745543]
[1738447350788,0.03,217.0,216.99,14.01745543]
[1738447351501,0.03,217.0,216.99,27.55479396]
[1738447351900,0.03,217.0,216.99,27.68028396]
[1738447352110,0.03,217.0,216.99,28.93126396]
[1738447352308,0.03,217.07,217.02,0.12549]
[1738447352620,0.03,217.07,217.04,32.16219396]
[1738447354617,0.03,217.07,217.04,33.53866396]
[1738447354823,0.03,217.07,217.06,4.73249]
[1738447354993,0.03,217.07,217.06,30.72930396]
[1738447355195,0.03,217.07,217.06,16.71184853]
[1738447355401,0.03,217.07,217.06,13.41184853]
[1738447358636,0.03,217.07,217.06,27.42930396]
[1738447358928,0.03,217.07,217.06,13.41184853]
[1738447360106,0.03,217.07,217.03,3.3]
[1738447360523,0.03,217.07,216.99,3.3]
[1738447360718,0.03,217.07,216.98,3.3]
[1738447360916,0.03,217.07,216.99,13.41184853]
[1738447361322,20.0,217.03,216.98,3.3]
[1738447362003,20.0,217.03,216.93,54.8]
[1738447362438,20.0,217.03,216.97,0.063]
[1738447364304,0.03,217.07,217.02,22.45127985]
[1738447365033,0.03,217.07,217.03,22.45127985]
[1738447365402,0.03,217.07,216.99,22.45127985]
[1738447365614,0.03,217.07,216.97,0.063]
[1738447365615,0.03,217.07,216.98,22.45127985]
[1738447365831,0.03,217.07,217.0,13.41184853]
[1738447366201,0.03,217.07,217.0,22.45127985]
[1738447367226,0.03,217.07,217.0,13.41184853]
[1738447369040,0.03,217.07,217.0,22.45127985]
[1738447369539,0.03,217.07,217.01,13.41184853]
[1738447369947,0.03,217.07,216.97,22.51427985]
[1738447370419,0.03,217.07,216.99,13.41184853]
[1738447371031,0.03,217.07,216.98,13.41184853]
[1738447371237,0.03,217.07,216.98,16.71184853]
[1738447372651,0.03,217.07,216.98,39.16312838]
[1738447373741,0.03,217.07,216.99,22.45127985]
[1738447374045,0.03,217.07,217.01,22.45127985]
[1738447374268,0.03,217.07,217.01,13.41184853]
[1738447374845,0.03,217.07,216.98,25.75127985]
[1738447375675,0.03,217.07,216.99,13.41184853]
[1738447377258,0.03,217.07,216.99,35.86312838]
[1738447379482,0.03,217.07,217.01,13.41184853]
[1738447379770,0.03,217.07,217.03,22.45127985]
[1738447379968,0.03,217.07,217.03,13.41184853]
[1738447380483,0.03,217.07,217.01,22.45127985]
[1738447380681,0.03,217.07,216.98,25.75127985]
[1738447380851,0.03,217.07,216.99,13.41184853]
[1738447381053,0.03,217.07,217.0,22.45127985]
[1738447381256,0.03,217.07,217.01,13.41184853]
[1738447382483,0.03,217.07,216.98,3.3]
[1738447383782,0.89372807,217.07,216.97,3.363]
[1738447384091,21.5229,217.06,216.97,0.063]
[1738447384376,0.8640951,217.05,216.97,0.063]
[1738447384683,20.0,217.01,216.97,0.063]
[1738447384862,0.8641283,217.0,216.97,0.063]
[1738447385769,20.0,217.01,216.97,0.063]
[1738447386082,0.86410802,217.0,216.97,0.063]
[1738447387687,0.86410802,217.0,216.98,0.063]
[1738447389078,20.0,217.01,216.98,0.063]
[1738447389587,6.0265,217.04,216.98,14.09981099]
[1738447389756,1.5229,217.06,216.98,14.09981099]
[1738447390082,0.03,217.07,217.0,14.03681099]
[1738447390791,0.03,217.07,217.02,14.03681099]
[1738447391677,0.03,217.07,217.04,22.42761366]
[1738447392083,0.03,217.07,217.02,22.42761366]
[1738447392285,0.03,217.07,217.0,3.3]
[1738447392585,0.03,217.07,217.01,35.83946219]
[1738447393276,0.03,217.07,217.03,13.41184853]
[1738447393893,0.03,217.07,217.02,13.41184853]
[1738447395294,0.03,217.07,217.02,35.83946219]
[1738447395498,0.03,217.07,217.0,3.3]
[1738447395883,0.03,217.07,217.01,13.41184853]
[1738447396809,0.03,217.07,216.98,3.363]
[1738447398116,0.03,217.07,216.98,25.79061366]
[1738447398809,0.03,217.07,216.98,22.49061366]
[1738447398988,0.03,217.07,216.99,13.41184853]
[1738447399193,0.03,217.07,217.01,22.42761366]
[1738447399503,0.03,217.07,216.99,35.83946219]
[1738447400206,0.03,217.07,216.98,3.363]
[1738447400405,0.03,217.07,216.98,0.063]
[1738447401594,0.03,217.07,217.0,13.41184853]
[1738447402205,0.03,217.07,216.99,13.41184853]
[1738447402509,0.03,217.07,216.98,0.063]
[1738447403011,0.03,217.07,216.98,35.90246219]
[1738447403707,0.03,217.07,217.04,22.42761366]
[1738447403908,0.03,217.07,217.05,22.42761366]
[1738447404293,0.03,217.07,217.03,22.42761366]
[1738447404506,0.03,217.07,216.98,0.063]
[1738447405010,0.03,217.07,216.98,13.47484853]
[1738447405209,0.03,217.07,216.98,0.063]
[1738447406893,1.5752,217.06,216.98,0.063]